bitfinex/quotes_SOLUSD_20240729
["timestamp","ask_amount","ask_price","bid_price","bid_amount"]
[1722214610613,36.2757,188.59,188.51,19.5]
[1722214610781,16.2757,188.59,188.51,19.5]
[1722214610988,36.2757,188.59,188.51,19.5]
[1722214611188,60.5177,188.59,188.51,19.5]
[1722214611397,20.0,188.57,188.44,26.42744468]
[1722214611709,20.67,188.56,188.44,26.42744468]
[1722214611910,0.17,188.55,188.45,1.06085669]
[1722214612089,0.17,188.55,188.46,1.06085577]
[1722214612293,0.17,188.56,188.47,24.3]
[1722214612686,0.17,188.56,188.48,45.0]
[1722214612997,0.17,188.56,188.48,65.5607344]
[1722214613302,0.17,188.56,188.49,1.06073317]
[1722214614010,0.17,188.57,188.49,1.06073317]
[1722214614186,0.34,188.58,188.48,21.06067695]
[1722214614387,0.34,188.58,188.48,20.0]
[1722214614909,20.0,188.57,188.48,20.0]
[1722214615111,0.34,188.56,188.48,20.0]
[1722214615413,0.34,188.56,188.48,19.5]
[1722214615995,20.34,188.56,188.44,26.42744468]
[1722214616212,0.34,188.56,188.45,46.06085843]
[1722214616593,0.34,188.57,188.45,46.06085843]
[1722214617107,0.34,188.56,188.45,46.06085843]
[1722214617409,15.9357,188.59,188.47,24.3]
[1722214617615,20.0,188.58,188.48,21.06065522]
[1722214617916,24.7424,188.57,188.48,20.0]
[1722214618206,24.7424,188.57,188.46,20.0]
[1722214618406,24.7424,188.57,188.45,20.0]
[1722214618712,0.34,188.56,188.48,24.3]
[1722214618903,15.9357,188.59,188.49,21.06069806]
[1722214619214,15.9357,188.59,188.51,24.3]
[1722214619397,15.9357,188.59,188.52,21.06047309]
[1722214619604,15.9357,188.59,188.53,45.0]
[1722214619795,15.9357,188.59,188.54,20.0]
[1722214620898,0.34,188.58,188.52,20.0]
[1722214621096,40.0,188.57,188.46,6.3929]
[1722214621301,20.0,188.55,188.45,24.3]
[1722214621502,0.34,188.54,188.45,24.3]
[1722214622506,0.34,188.54,188.46,1.06091791]
[1722214622919,0.34,188.54,188.45,24.3]
[1722214623305,0.34,188.54,188.46,20.0]
[1722214624422,15.65702453,188.54,188.47,1.06091381]
[1722214624735,15.65702453,188.54,188.46,21.06079239]
[1722214624736,15.48702453,188.54,188.46,21.06079239]
[1722214624908,0.17,188.54,188.46,21.06079239]
[1722214625118,15.65681722,188.55,188.46,20.0]
[1722214625416,15.31681722,188.54,188.46,20.0]
[1722214625590,15.65681722,188.53,188.46,20.0]
[1722214625794,15.31681722,188.54,188.46,20.0]
[1722214626008,0.34,188.53,188.46,20.0]
[1722214627015,16.3971,188.52,188.46,20.0]
[1722214627193,16.3971,188.52,188.43,22.08362524]
[1722214627194,0.17,188.51,188.43,22.08362524]
[1722214627396,0.17,188.51,188.43,20.0]
[1722214628091,0.17,188.51,188.43,21.06097573]
[1722214628617,0.17,188.51,188.43,44.3]
[1722214628829,0.34,188.51,188.43,44.3]
[1722214629007,15.65888765,188.51,188.43,44.3]
[1722214629507,15.65888765,188.51,188.43,24.3]
[1722214630417,16.3971,188.52,188.46,24.3]
[1722214630898,16.3971,188.52,188.47,20.0]
[1722214631100,16.3971,188.52,188.47,21.06089257]
[1722214631922,16.3971,188.52,188.47,20.0]
[1722214632318,15.65793462,188.51,188.42,26.39543086]
[1722214632621,15.48793462,188.51,188.45,24.3]
[1722214632921,16.3971,188.52,188.46,20.0]
[1722214634404,15.3191844,188.51,188.46,20.0]
[1722214634803,16.3971,188.52,188.46,20.0]
[1722214635110,15.8971,188.52,188.46,20.0]
[1722214635293,15.31880654,188.51,188.46,20.0]
[1722214635701,0.34,188.5,188.41,0.7721613]
[1722214636128,20.0,188.49,188.41,0.7721613]
[1722214636293,0.34,188.48,188.41,0.7721613]
[1722214637307,20.0,188.47,188.41,0.7721613]
[1722214637506,0.34,188.46,188.41,0.7721613]
[1722214637911,0.17,188.46,188.41,0.7721613]
[1722214638110,15.32219938,188.48,188.41,0.7721613]
[1722214638322,0.17,188.47,188.41,0.7721613]
[1722214638920,20.0,188.47,188.41,0.7721613]
[1722214639223,0.17,188.46,188.41,0.7721613]
[1722214639399,0.34,188.46,188.41,0.7721613]
[1722214639603,15.5527,188.45,188.41,0.7721613]
[1722214639815,0.34,188.44,188.41,0.7721613]
[1722214640211,26.0237,188.49,188.41,0.7721613]
[1722214640212,21.5764,188.49,188.41,0.7721613]
[1722214640419,15.5527,188.49,188.42,25.36118813]
[1722214640613,15.5527,188.49,188.43,20.0]
[1722214640811,35.5527,188.49,188.43,20.0]
[1722214641012,15.5527,188.49,188.43,19.0]
[1722214641640,15.5527,188.49,188.43,18.0]
[1722214643217,0.34,188.48,188.43,18.0]
[1722214644227,0.34,188.48,188.41,0.7721613]
[1722214648336,0.17,188.48,188.41,0.7721613]
[1722214649817,20.17,188.48,188.41,0.7721613]
[1722214650014,0.34,188.48,188.41,0.7721613]
[1722214650321,20.0,188.47,188.41,0.7721613]
[1722214650514,20.84,188.46,188.41,0.7721613]
[1722214651322,20.0,188.44,188.41,0.7721613]
[1722214651638,20.0,188.39,188.26,6.4255]
[1722214651843,20.0,188.39,188.28,26.39081932]
[1722214651844,20.0,188.38,188.28,26.39081932]
[1722214652146,0.34,188.38,188.28,26.39081932]
[1722214653043,0.5,188.37,188.28,26.39081932]
[1722214653225,0.17,188.36,188.28,26.39081932]
[1722214653436,0.34,188.38,188.31,24.3]
[1722214653749,0.17,188.38,188.32,1.06177217]
[1722214654243,15.7751,188.42,188.32,21.06177217]
[1722214654431,0.34,188.41,188.34,24.3]
[1722214654625,0.34,188.41,188.35,20.0]
[1722214656147,40.0,188.4,188.35,20.0]
[1722214656435,0.84,188.39,188.32,20.0]
[1722214656639,0.84,188.39,188.3,20.0]
[1722214659045,0.34,188.39,188.3,20.0]
[1722214660433,0.84,188.39,188.3,20.0]
[1722214663747,20.0,188.36,188.26,8.50384417]
[1722214664043,0.34,188.35,188.26,6.4255]
[1722214664838,0.34,188.35,188.25,24.3]
[1722214665027,16.5757,188.34,188.26,20.0]
[1722214665225,0.34,188.33,188.26,20.0]
[1722214665426,16.5757,188.34,188.28,24.3]
[1722214665645,46.5568,188.38,188.29,20.0]
[1722214665848,20.0,188.36,188.29,20.0]
[1722214666032,20.34,188.35,188.29,20.0]
[1722214667756,20.0,188.34,188.29,20.0]
[1722214667953,0.34,188.33,188.23,25.0721613]
[1722214668136,20.34,188.33,188.23,27.18752068]
[1722214668330,40.0,188.31,188.23,0.7721613]
[1722214668546,40.5,188.31,188.23,0.7721613]
[1722214668742,0.34,188.3,188.23,0.7721613]
[1722214668938,0.5,188.29,188.23,0.7721613]
[1722214669134,0.34,188.28,188.23,0.7721613]
[1722214669337,40.0,188.26,188.23,0.7721613]
[1722214669540,0.34,188.25,188.23,0.7721613]
[1722214669767,16.2071,188.28,188.23,0.7721613]
[1722214669934,0.17,188.28,188.23,0.7721613]
[1722214670138,15.5412,188.34,188.25,24.3]
[1722214670361,20.0,188.32,188.25,24.3]
[1722214670741,35.5412,188.34,188.25,24.3]
[1722214670931,20.0,188.32,188.25,24.3]
[1722214671330,20.0,188.32,188.23,0.7721613]
[1722214671331,20.0,188.29,188.23,0.7721613]
[1722214671535,20.0,188.27,188.23,20.7721613]
[1722214671834,0.34,188.26,188.23,0.7721613]
[1722214672862,20.0,188.24,188.23,0.7721613]
[1722214673060,40.67,188.24,188.23,0.7721613]
[1722214673237,40.84,188.24,188.23,0.7721613]
[1722214673761,40.84,188.24,188.11,271.2926]
[1722214673762,40.0,188.22,188.11,24.3]
[1722214673954,0.34,188.21,188.11,24.3]
[1722214674457,0.34,188.21,188.11,27.44648847]
[1722214674761,0.34,188.21,188.14,24.3]
[1722214676159,0.34,188.21,188.15,1.06281819]
[1722214676360,0.17,188.21,188.15,1.06281819]
[1722214676541,0.17,188.21,188.14,24.3]
[1722214676741,0.17,188.21,188.15,21.06272505]
[1722214677343,16.4808,188.25,188.17,24.3]
[1722214677549,16.4808,188.25,188.18,20.0]
[1722214678346,40.0,188.26,188.18,20.0]
[1722214678654,20.0,188.24,188.18,20.0]
[1722214679159,20.0,188.22,188.14,24.3]
[1722214679464,0.34,188.21,188.15,20.0]
[1722214679965,0.34,188.21,188.11,18.27456628]
[1722214679966,0.34,188.21,188.11,17.21170235]
[1722214680160,0.34,188.21,188.13,24.3]
[1722214680350,0.17,188.21,188.14,20.0]
[1722214680549,0.17,188.21,188.16,24.3]
[1722214680854,5.52620278,188.28,188.2,6.2746]
[1722214681163,20.0,188.26,188.19,24.3]
[1722214681361,20.0,188.26,188.2,20.0]
[1722214681754,5.52607123,188.29,188.2,20.0]
[1722214681952,5.52607123,188.29,188.22,24.3]
[1722214682160,36.3448,188.31,188.22,24.3]
[1722214682161,56.3448,188.31,188.22,24.3]
[1722214682374,21.8684724,188.31,188.22,24.3]
[1722214682663,20.0,188.34,188.24,6.1249]
[1722214682865,20.0,188.34,188.25,20.0]
[1722214683171,26.02248829,188.34,188.25,20.0]
[1722214683538,20.0,188.32,188.25,20.0]
[1722214683747,25.52248829,188.34,188.25,20.0]
[1722214684068,16.2335,188.36,188.26,1.06219521]
[1722214684444,16.2335,188.36,188.28,24.3]
[1722214684652,0.5,188.35,188.28,24.3]
[1722214684862,20.0,188.34,188.25,44.3]
[1722214685080,44.7478,188.34,188.25,44.3]
[1722214685246,40.0,188.32,188.25,20.0]
[1722214685448,20.0,188.34,188.25,20.0]
[1722214685654,40.0,188.34,188.25,20.0]
[1722214686180,40.0,188.32,188.25,20.0]
[1722214686468,0.34,188.31,188.22,24.3]
[1722214686673,0.34,188.31,188.23,20.0]
[1722214687662,0.34,188.31,188.25,24.3]
[1722214687860,20.34,188.31,188.26,20.0]
[1722214688172,20.34,188.31,188.22,26.44723186]
[1722214688473,20.34,188.31,188.23,20.0]
[1722214688874,20.34,188.31,188.23,19.5]
[1722214689076,0.5,188.3,188.23,19.5]
[1722214689248,0.34,188.29,188.23,19.5]
[1722214689454,0.34,188.28,188.23,19.5]
[1722214689654,20.0,188.3,188.22,24.3]
[1722214689855,0.17,188.27,188.22,24.3]
[1722214690057,0.17,188.29,188.22,24.3]
[1722214691173,0.17,188.29,188.23,20.0]
[1722214691370,15.7324,188.32,188.23,20.0]
[1722214691556,0.34,188.31,188.23,20.0]
[1722214692168,40.34,188.31,188.23,20.0]
[1722214692373,40.34,188.31,188.22,20.0]
[1722214694072,40.84,188.31,188.22,20.0]
[1722214694473,40.84,188.31,188.21,24.3]
[1722214694974,20.84,188.31,188.21,24.3]
[1722214695679,20.34,188.31,188.21,24.3]
[1722214695878,20.84,188.31,188.22,20.0]
[1722214696066,20.0,188.3,188.22,20.0]
[1722214696263,0.34,188.29,188.22,20.0]
[1722214696458,0.34,188.29,188.21,20.0]
[1722214697381,0.34,188.29,188.21,44.3]
[1722214697685,0.34,188.3,188.21,44.3]
[1722214697867,0.34,188.29,188.21,44.3]
[1722214698181,20.34,188.31,188.21,45.36230628]
[1722214698763,20.34,188.31,188.21,44.3]
[1722214701287,20.0,188.28,188.21,44.3]
[1722214701586,0.34,188.27,188.21,24.3]
[1722214702380,0.34,188.26,188.21,24.3]
[1722214702580,0.34,188.28,188.21,25.36247627]
[1722214702886,0.34,188.28,188.22,20.0]
[1722214703056,0.34,188.28,188.23,1.0623221]
[1722214703384,0.34,188.28,188.24,1.06232213]
[1722214703882,0.17,188.28,188.24,1.06232213]
[1722214704079,15.7324,188.32,188.24,25.36232213]
[1722214704280,15.7324,188.32,188.27,24.3]
[1722214704462,20.0,188.36,188.27,24.3]
[1722214704879,20.0,188.36,188.28,20.0]
[1722214705473,20.0,188.34,188.28,20.0]
[1722214705782,20.0,188.32,188.25,20.0]
[1722214706160,20.0,188.31,188.22,20.0]
[1722214706490,0.34,188.3,188.22,20.0]
[1722214708263,20.34,188.3,188.22,20.0]
[1722214709692,0.34,188.3,188.22,20.0]
[1722214710388,0.34,188.29,188.22,20.0]
[1722214710563,0.34,188.31,188.23,1.06221842]
[1722214710758,15.33572177,188.35,188.25,24.3]
[1722214711178,15.33572177,188.35,188.26,20.0]
[1722214711371,15.33572177,188.35,188.27,1.06210824]
[1722214711579,20.0,188.36,188.27,1.06210824]
[1722214712480,21.57808007,188.37,188.28,24.3]
[1722214712669,20.0,188.36,188.28,24.3]
[1722214713081,20.5,188.36,188.28,24.3]
[1722214713266,20.5,188.35,188.28,24.3]
[1722214713465,20.0,188.34,188.26,20.0]
[1722214713666,9.58489666,188.34,188.28,24.3]
[1722214713883,16.0644,188.37,188.28,24.3]
[1722214714087,16.0644,188.37,188.29,20.0]
[1722214715178,36.5644,188.37,188.29,20.0]
[1722214715372,35.67376773,188.36,188.29,20.0]
[1722214715691,35.67376773,188.36,188.26,20.0]
[1722214715692,20.34,188.36,188.26,20.0]
[1722214715897,0.34,188.36,188.26,20.0]
[1722214716191,15.67369027,188.36,188.26,20.0]
[1722214716369,0.34,188.36,188.26,20.0]
[1722214716564,15.67369643,188.36,188.26,20.0]
[1722214717585,0.34,188.36,188.26,20.0]
[1722214719899,20.0,188.34,188.25,24.3]
[1722214720077,0.34,188.33,188.25,24.3]
[1722214721096,36.0644,188.37,188.26,1.06209843]
[1722214721503,20.0,188.35,188.25,24.3]
[1722214721805,56.0644,188.37,188.26,66.06206808]
[1722214721984,36.0644,188.37,188.26,66.06206808]
[1722214722180,36.0644,188.37,188.26,65.0]
[1722214722378,0.34,188.36,188.26,20.0]
[1722214722692,20.0,188.35,188.26,20.0]
[1722214723010,0.34,188.34,188.26,20.0]
[1722214723509,40.0,188.33,188.26,20.0]
[1722214723810,0.34,188.32,188.26,20.0]
[1722214724116,40.0,188.31,188.22,24.3]
[1722214724415,20.0,188.35,188.25,24.3]
[1722214724582,24.91874276,188.34,188.26,1.06215632]
[1722214724783,24.91874276,188.33,188.25,24.3]
[1722214724984,29.76644008,188.35,188.25,24.3]
[1722214725207,40.0,188.32,188.22,24.3]
[1722214725502,0.34,188.31,188.22,24.3]
[1722214725808,0.34,188.31,188.23,20.0]
[1722214726381,0.34,188.31,188.24,1.06221438]
[1722214726581,0.34,188.32,188.24,1.06221438]
[1722214727392,0.34,188.31,188.24,1.06221438]
[1722214727577,0.34,188.33,188.24,1.06221438]
[1722214727978,0.34,188.33,188.25,24.3]
[1722214728201,0.34,188.33,188.26,20.0]
[1722214728609,0.34,188.33,188.27,1.06215857]
[1722214728815,0.34,188.33,188.26,20.0]
[1722214728995,9.58484054,188.32,188.26,20.0]
[1722214729202,9.58484054,188.32,188.26,24.3]
[1722214729409,36.0644,188.37,188.27,20.0]
[1722214729588,15.33494728,188.36,188.27,20.0]
[1722214729790,24.91928933,188.36,188.27,21.06195423]
[1722214729989,15.33494728,188.35,188.29,24.3]
[1722214730221,9.5837318,188.35,188.3,21.06185404]
[1722214730525,16.0644,188.37,188.3,21.06185404]
[1722214731014,16.565,188.41,188.3,21.06185404]
[1722214731225,24.91180026,188.4,188.3,21.06185404]
[1722214731389,24.91180026,188.39,188.3,21.06185404]
[1722214731585,16.565,188.41,188.3,21.06185404]
[1722214731789,24.912069,188.4,188.3,21.06185404]
[1722214731991,24.91205655,188.39,188.3,21.06185404]
[1722214732193,16.565,188.41,188.3,21.06185404]
[1722214732390,35.67056312,188.4,188.3,21.06185404]
[1722214732626,25.25216507,188.4,188.3,21.06185404]
[1722214732919,24.91216507,188.39,188.3,21.06185404]
[1722214733122,0.34,188.38,188.3,21.06185404]
[1722214733300,20.0,188.38,188.3,20.0]
[1722214733492,25.25307323,188.37,188.3,20.0]
[1722214733702,0.34,188.37,188.3,20.0]
[1722214733904,15.67211513,188.37,188.3,20.0]
[1722214734507,20.0,188.36,188.3,20.0]
[1722214734816,0.17,188.35,188.29,20.0]
[1722214734996,0.34,188.37,188.29,21.06187697]
[1722214735199,0.34,188.37,188.29,44.3]
[1722214735594,15.6717257,188.38,188.29,44.3]
[1722214736219,0.34,188.38,188.29,44.3]
[1722214737113,0.34,188.38,188.3,45.0]
[1722214737308,0.34,188.38,188.31,20.0]
[1722214737504,0.17,188.37,188.31,20.0]
[1722214737709,0.34,188.39,188.31,20.0]
[1722214738798,15.67042878,188.4,188.31,20.0]
[1722214739125,35.67042878,188.4,188.31,20.0]
[1722214739413,20.34,188.4,188.31,20.0]
[1722214739920,20.34,188.4,188.3,20.0]
[1722214741525,20.0,188.38,188.3,20.0]
[1722214741696,0.34,188.37,188.3,20.0]
[1722214741894,0.17,188.36,188.3,20.0]
[1722214742322,0.17,188.36,188.29,20.0]
[1722214743022,0.17,188.36,188.3,1.06196359]
[1722214743227,0.17,188.36,188.29,20.0]
[1722214743410,0.17,188.36,188.3,1.06195924]
[1722214743802,0.17,188.36,188.29,20.0]
[1722214744136,0.17,188.36,188.29,45.36192179]
[1722214744442,0.17,188.37,188.3,46.06178046]
[1722214744740,16.565,188.41,188.31,20.0]
[1722214744900,16.565,188.41,188.32,1.0617294]
[1722214746113,0.34,188.4,188.32,1.0617294]
[1722214746519,0.34,188.4,188.33,1.06172922]
[1722214746729,0.34,188.4,188.32,45.0]
[1722214747025,16.565,188.41,188.33,20.0]
[1722214747411,16.565,188.41,188.33,21.06166275]
[1722214747618,15.2096,188.46,188.35,24.3]
[1722214747916,15.2096,188.46,188.36,21.0614647]
[1722214747917,24.90587017,188.45,188.36,21.0614647]
[1722214748109,15.0817,188.5,188.38,24.3]
[1722214748308,15.0817,188.54,188.41,24.3]
[1722214748514,24.89915044,188.53,188.44,24.3]
[1722214748707,50.7871,188.58,188.45,26.3057]
[1722214748914,24.89688854,188.57,188.45,26.3057]
[1722214749127,24.89688854,188.56,188.45,26.3057]
[1722214749331,24.89688854,188.55,188.45,26.3057]
[1722214749503,22.01137702,188.58,188.47,24.3]
[1722214749708,24.8945696,188.57,188.48,21.06083162]
[1722214750016,16.4855,188.58,188.49,1.06080339]
[1722214750210,15.3185075,188.57,188.49,1.06080339]
[1722214750417,15.3185075,188.57,188.48,20.0]
[1722214750622,9.57406718,188.57,188.49,45.0]
[1722214750819,20.0,188.6,188.5,44.3]
[1722214751332,9.57354533,188.59,188.5,44.3]
[1722214751513,20.0,188.6,188.5,44.3]
[1722214753029,0.34,188.59,188.5,44.3]
[1722214753608,5.52541166,188.62,188.51,1.06069261]
[1722214753807,35.6656,188.63,188.51,46.06069261]
[1722214754109,41.19238249,188.63,188.52,20.0]
[1722214754318,21.19238249,188.63,188.53,46.06053066]
[1722214754518,15.6656,188.63,188.54,20.0]
[1722214755012,20.0,188.62,188.54,20.0]
[1722214755207,40.0,188.62,188.54,20.0]
[1722214755919,0.34,188.61,188.54,20.0]
[1722214756918,44.2418,188.6,188.54,20.0]
[1722214757112,44.2418,188.6,188.5,40.1555]
[1722214757113,0.34,188.59,188.51,20.0]
[1722214757315,0.34,188.61,188.51,20.0]
[1722214757636,15.6656,188.63,188.51,21.06067064]
[1722214757815,20.0,188.62,188.52,45.0]
[1722214758139,15.6656,188.63,188.53,20.0]
[1722214758442,20.0,188.64,188.54,45.0]
[1722214758823,40.5,188.64,188.53,44.3]
[1722214759132,20.0,188.62,188.53,44.3]
[1722214759343,20.34,188.61,188.53,20.0]
[1722214759532,20.34,188.61,188.51,20.0]
[1722214760341,40.0,188.59,188.51,20.0]
[1722214760636,0.84,188.58,188.47,24.3]
[1722214761639,0.84,188.58,188.48,45.0]
[1722214761836,0.84,188.58,188.49,20.0]
[1722214762213,0.34,188.58,188.49,20.0]
[1722214763948,0.34,188.59,188.5,24.3]
[1722214764119,20.0,188.64,188.51,21.06061755]
[1722214764321,20.0,188.64,188.53,24.3]
[1722214764322,20.5,188.64,188.53,24.3]
[1722214764529,20.0,188.62,188.54,20.0]
[1722214764716,20.5,188.62,188.54,20.0]
[1722214764920,20.5,188.63,188.54,20.0]
[1722214765745,0.34,188.62,188.54,20.0]
[1722214765949,20.0,188.61,188.54,20.0]
[1722214766126,0.34,188.6,188.54,20.0]
[1722214766443,0.34,188.6,188.51,20.0]
[1722214767523,0.34,188.6,188.52,51.5023]
[1722214767725,0.34,188.6,188.53,20.0]
[1722214767940,0.34,188.6,188.53,44.3]
[1722214768446,15.6769,188.67,188.56,24.3]
[1722214768634,15.6769,188.67,188.57,21.06030191]
[1722214768947,15.6769,188.67,188.58,1.06030191]
[1722214769321,15.6769,188.67,188.58,1.06025802]
[1722214769547,0.7721613,188.7,188.58,1.06025802]
[1722214769870,20.7721613,188.7,188.58,1.06025802]
[1722214770528,25.0116613,188.7,188.58,1.06025802]
[1722214770729,20.0,188.68,188.58,1.06025802]
[1722214771052,20.0,188.66,188.57,20.0]
[1722214771437,0.34,188.65,188.57,20.0]
[1722214772165,0.34,188.66,188.57,20.0]
[1722214773351,0.34,188.67,188.57,20.0]
[1722214773573,0.17,188.65,188.57,20.0]
[1722214773729,0.34,188.67,188.57,20.0]
[1722214776056,0.34,188.67,188.57,22.12354652]
[1722214776852,0.84,188.67,188.57,22.12354652]
[1722214780250,20.0,188.66,188.57,22.12354652]
[1722214780457,0.34,188.65,188.57,22.12354652]
[1722214781466,0.34,188.65,188.58,1.06025121]
[1722214782554,0.34,188.65,188.57,22.12354652]
[1722214786447,20.34,188.65,188.54,16.1545]
[1722214786650,20.84,188.65,188.54,16.1545]
[1722214786840,0.34,188.65,188.54,16.1545]
[1722214787157,20.0,188.67,188.54,16.1545]
[1722214787158,0.34,188.66,188.54,16.1545]
[1722214787361,20.84,188.66,188.54,16.1545]
[1722214787539,20.0,188.64,188.54,16.1545]
[1722214787738,0.34,188.63,188.55,20.0]
[1722214788352,0.17,188.63,188.56,45.0]
[1722214788542,0.17,188.63,188.57,20.0]
[1722214788930,20.17,188.63,188.57,20.0]
[1722214789137,44.4113,188.63,188.55,20.0]
[1722214789476,0.17,188.62,188.55,20.0]
[1722214790545,0.17,188.63,188.55,20.0]
[1722214790756,0.17,188.64,188.55,20.0]
[1722214790954,0.34,188.64,188.55,20.0]
[1722214791161,0.34,188.64,188.59,12.18]
[1722214791462,0.34,188.64,188.55,20.0]
[1722214791463,20.0,188.63,188.58,12.18]
[1722214791663,0.34,188.62,188.55,20.0]
[1722214791971,0.34,188.62,188.58,12.18]
[1722214793841,0.17,188.61,188.58,12.18]
[1722214794168,0.34,188.63,188.59,12.18]
[1722214794674,15.65239795,188.63,188.59,12.18]
[1722214794876,0.5,188.62,188.59,12.18]
[1722214795044,0.34,188.61,188.58,12.18]
[1722214795239,20.0,188.6,188.58,12.18]
[1722214795447,20.0,188.6,188.54,16.1545]
[1722214795658,0.34,188.59,188.56,12.18]
[1722214796562,0.34,188.59,188.5,16.4315]
[1722214796563,0.34,188.59,188.57,12.18]
[1722214796760,0.17,188.59,188.58,12.18]
[1722214796955,15.31269377,188.63,188.58,12.18]
[1722214797157,0.34,188.62,188.59,12.18]
[1722214798389,15.65213228,188.62,188.59,12.18]
[1722214798684,0.34,188.62,188.59,12.18]
[1722214798858,15.65211994,188.62,188.55,12.18]
[1722214799059,0.17,188.62,188.61,12.18]
[1722214799263,15.31055904,188.64,188.61,12.18]
[1722214799458,0.17,188.63,188.61,12.18]
[1722214799672,0.34,188.63,188.6,12.18]
[1722214800272,0.17,188.63,188.61,12.18]
[1722214800575,0.17,188.63,188.62,12.18]
[1722214800769,15.30888397,188.66,188.61,12.18]
[1722214800978,20.0,188.66,188.62,12.18]
[1722214801679,41.00934133,188.68,188.62,12.18]
[1722214801882,20.0,188.65,188.6,12.18]
[1722214802286,0.17,188.64,188.62,12.18]
[1722214802461,0.17,188.65,188.62,12.18]
[1722214802968,0.34,188.66,188.62,12.18]
[1722214803379,0.17,188.65,188.64,12.18]
[1722214803585,0.17,188.65,188.63,12.18]
[1722214803790,0.17,188.65,188.62,12.18]
[1722214804092,0.17,188.65,188.61,12.18]
[1722214804093,0.34,188.65,188.61,12.18]
[1722214804268,9.56930493,188.64,188.61,12.18]
[1722214804464,0.17,188.63,188.61,12.18]
[1722214804884,0.17,188.64,188.61,12.18]
[1722214805068,0.34,188.64,188.61,12.18]
[1722214805473,0.17,188.63,188.61,12.18]
[1722214805673,0.17,188.64,188.55,55.1265]
[1722214805674,0.17,188.64,188.62,12.18]
[1722214805881,0.17,188.65,188.62,12.18]
[1722214806080,0.34,188.66,188.62,12.18]
[1722214806287,0.34,188.66,188.63,12.18]
[1722214806586,5.51514133,188.68,188.63,12.18]
[1722214806787,15.30938117,188.67,188.63,12.18]
[1722214806965,5.51514133,188.68,188.66,12.18]
[1722214807293,0.7721613,188.7,188.57,1.06011461]
[1722214807470,0.7721613,188.7,188.58,1.06002989]
[1722214807659,0.7721613,188.7,188.67,12.18]
[1722214808295,0.7721613,188.7,188.69,12.18]
[1722214809264,0.7721613,188.7,188.66,12.18]
[1722214809912,0.17,188.69,188.66,12.18]
[1722214810186,0.17,188.69,188.67,12.18]
[1722214810889,0.34,188.69,188.66,12.18]
[1722214811272,0.17,188.69,188.67,12.18]
[1722214811473,0.7721613,188.7,188.67,12.18]
[1722214811672,0.7721613,188.7,188.63,6.0585]
[1722214811873,0.34,188.69,188.66,12.18]